bitfinex-derivatives/quotes_ETHF0:USTF0_20240818
["timestamp","ask_amount","ask_price","bid_price","bid_amount"]
[1723995578392,2.91119196,2666.2,2666.1,1.87495]
[1723995579285,0.945,2666.2,2666.1,1.87495]
[1723995579481,2.91095177,2666.2,2666.1,1.87495]
[1723995580089,0.945,2666.2,2666.1,1.87495]
[1723995580490,2.91094639,2666.2,2666.1,1.87495]
[1723995584784,2.91094639,2666.2,2666.1,5.62535]
[1723995589299,2.91094639,2666.2,2666.1,3.7504]
[1723995589497,2.91094639,2666.2,2666.1,5.62535]
[1723995592502,2.91094639,2666.2,2666.1,1.87495]
[1723995597415,2.91094639,2666.2,2666.0,42.67946653]
[1723995597611,1.96594639,2666.1,2666.0,42.67946653]
[1723995598108,1.96594639,2666.1,2666.0,46.43066653]
[1723995600714,0.945,2666.2,2666.0,46.43066653]
[1723995600715,2.91094639,2666.2,2666.1,1.87495]
[1723995602907,1.96594639,2666.2,2666.1,1.87495]
[1723995603115,2.91094639,2666.2,2666.1,1.87495]
[1723995608526,1.96594639,2666.2,2666.1,1.87495]
[1723995609226,6.02772,2666.2,2666.0,40.80447653]
[1723995609423,5.2781154,2666.2,2666.0,40.80447653]
[1723995609624,8.4859154,2666.2,2666.0,40.80447653]
[1723995609820,2.4581954,2666.1,2666.0,40.80447653]
[1723995610323,2.4581954,2666.1,2666.0,44.55567653]
[1723995610521,4.3331454,2666.1,2666.0,44.55567653]
[1723995610729,2.4581954,2666.1,2666.0,44.55567653]
[1723995611627,2.4581954,2666.1,2666.0,46.43069653]
[1723995612321,4.3331454,2666.1,2666.0,44.55567653]
[1723995612525,2.4581954,2666.1,2666.0,44.55567653]
[1723995613324,2.4581954,2666.1,2666.0,46.43069653]
[1723995613924,8.4859054,2666.2,2666.0,44.55567653]
[1723995614140,8.4859054,2666.2,2666.0,40.80447653]
[1723995614326,8.4859054,2666.2,2666.0,42.67949653]
[1723995614629,2.4581954,2666.1,2666.0,40.80447653]
[1723995616620,2.4581954,2666.1,2666.0,42.67949653]
[1723995616823,2.4581954,2666.1,2666.0,40.80447653]
[1723995617622,2.4581954,2666.1,2666.0,42.67949653]
[1723995618320,2.4581954,2666.1,2666.0,40.80447653]
[1723995618733,2.4581954,2666.1,2666.0,42.67949653]
[1723995621235,6.02771,2666.2,2666.0,42.67949653]
[1723995621624,2.46013434,2666.1,2666.0,42.67949653]
[1723995622933,4.33508434,2666.1,2666.0,40.80447653]
[1723995623231,5.28008434,2666.1,2666.0,40.80447653]
[1723995623534,3.40506342,2666.1,2666.0,40.80447653]
[1723995624319,3.40506342,2666.1,2666.0,42.67949653]
[1723995625130,3.40506342,2666.1,2666.0,40.80447653]
[1723995625436,2.46006342,2666.1,2666.0,42.67949653]
[1723995625922,6.02769,2666.2,2666.0,42.67949653]
[1723995626319,2.45995851,2666.1,2666.0,42.67949653]
[1723995627836,6.02769,2666.2,2666.0,42.67949653]
[1723995628336,2.45989659,2666.1,2666.0,42.67949653]
[1723995641147,4.33484659,2666.1,2666.0,40.80447653]
[1723995641347,2.22425,2666.1,2666.0,40.80447653]
[1723995641645,3.16925,2666.1,2666.0,40.80447653]
[1723995644853,5.62922913,2666.1,2666.0,40.80447653]
[1723995645146,5.62923601,2666.1,2666.0,42.67949653]
[1723995645838,3.40498601,2666.1,2666.0,42.67949653]
[1723995647755,2.81995,2666.1,2666.0,40.80447653]
[1723995648154,0.945,2666.1,2666.0,40.80447653]
[1723995648355,0.945,2666.1,2666.0,42.67949653]
[1723995650449,3.40529171,2666.1,2666.0,42.67949653]
[1723995650758,0.945,2666.1,2666.0,42.67949653]
[1723995662057,3.40639984,2666.1,2666.0,43.66053433]
[1723995662468,3.40639984,2666.1,2666.0,42.67949653]
[1723995662654,0.945,2666.1,2666.0,42.67949653]
[1723995662851,3.40632266,2666.1,2666.0,43.66053433]
[1723995663663,2.46132266,2666.1,2666.0,43.66053433]
[1723995663961,0.945,2666.1,2666.0,42.67949653]
[1723995664173,3.40624734,2666.1,2666.0,43.66053433]
[1723995666677,2.46124734,2666.2,2666.1,1.87495]
[1723995666880,2.46124734,2666.2,2666.1,2.85904769]
[1723995668265,3.40624734,2666.3,2666.1,0.98409769]
[1723995668572,3.40624734,2666.3,2666.2,2.24058]
[1723995668770,3.40624734,2666.3,2666.2,2.58398]
[1723995670265,3.40624734,2666.3,2666.2,43.38398]
[1723995672365,3.40624734,2666.3,2666.2,43.01828]
[1723995677969,2.46124734,2666.3,2666.2,43.01828]
[1723995692099,2.44408228,2666.4,2666.2,52.71368]
[1723995692299,1.96627081,2666.7,2666.3,14.08656377]
[1723995692506,2.91127081,2666.8,2666.5,0.9827662]
[1723995692705,2.91127081,2666.8,2666.7,1.87453]
[1723995693203,2.91127081,2666.8,2666.7,2.24013]
[1723995693406,0.945,2666.8,2666.7,2.24013]
[1723995697707,4.6946,2666.8,2666.4,4.1905662]
[1723995697906,4.1528,2666.5,2666.1,5.1317662]
[1723995698111,0.945,2666.3,2666.1,4.4858]
[1723995698411,0.945,2666.3,2666.1,6.36072]
[1723995698908,0.945,2666.3,2666.1,2.21172]
[1723995699208,0.945,2666.3,2666.2,46.62280847]
[1723995699511,0.945,2666.3,2666.2,44.74792847]
[1723995700509,0.945,2666.3,2666.2,46.62280847]
[1723995702498,3.27597081,2666.4,2666.3,1.87481]
[1723995702803,3.27597081,2666.4,2666.3,2.23411]
[1723995703212,1.3097,2666.4,2666.3,2.23411]
[1723995703516,3.27597081,2666.4,2666.3,2.23411]
[1723995707211,2.91127081,2666.4,2666.3,2.23411]
[1723995707429,2.91127081,2666.5,2666.4,1.87474]
[1723995707606,0.945,2666.5,2666.4,1.87474]
[1723995707819,1.96627081,2666.6,2666.5,1.87467]
[1723995708120,2.91445045,2666.9,2666.5,2.81967]
[1723995708309,2.91445045,2666.9,2666.8,1.87446]
[1723995708508,0.94817964,2666.9,2666.8,1.87446]
[1723995711220,0.00317964,2666.9,2666.8,1.87446]
[1723995711423,0.00317964,2666.9,2666.8,5.08226]
[1723995711617,0.00317964,2666.9,2666.8,6.02726]
[1723995712513,0.00317964,2666.9,2666.8,5.08226]
[1723995717520,0.00317964,2666.9,2666.8,6.02726]
[1723995717822,3.21341966,2667.4,2666.9,0.18848785]
[1723995718027,0.00561966,2667.4,2667.3,2.81911]
[1723995718325,1.96132705,2667.9,2667.8,1.87376]
[1723995718523,0.3462,2668.1,2668.0,1.87362]
[1723995718725,0.945,2668.2,2668.1,1.87355]
[1723995718923,0.945,2668.2,2668.1,1.8768825]
[1723995719128,0.94985879,2668.2,2668.1,1.8768825]
[1723995719319,0.00485879,2668.2,2668.1,2.8218825]
[1723995719728,0.00485879,2668.2,2668.1,1.8768825]
[1723995719932,0.00485879,2668.2,2668.1,42.6768825]
[1723995721918,0.00485879,2668.2,2668.1,43.6218825]
[1723995723522,0.00485879,2668.2,2668.1,47.3698825]
[1723995725536,0.00485879,2668.2,2668.1,49.2434325]
[1723995725724,0.00485879,2668.2,2668.1,47.3698825]
[1723995727024,0.00485879,2668.2,2668.1,49.2434325]
[1723995727726,0.00485879,2668.2,2668.1,47.3698825]
[1723995731631,0.00485879,2668.2,2668.1,50.5776825]
[1723995732056,0.00485879,2668.2,2668.1,47.3698825]
[1723995732238,0.00485879,2668.2,2668.1,50.5776825]
[1723995732938,0.00485879,2668.2,2668.1,45.8846825]
[1723995733141,0.00485879,2668.2,2668.1,46.8296825]
[1723995736242,0.00485879,2668.2,2668.1,50.5776825]
[1723995737238,0.00485879,2668.2,2668.1,46.8296825]
[1723995737634,0.00485879,2668.2,2668.1,45.8846825]
[1723995739635,0.00485879,2668.2,2668.1,42.6768825]
[1723995753962,0.00485879,2668.2,2668.1,43.0454825]
[1723995762468,0.00485879,2668.2,2668.1,42.6768825]
[1723995762669,0.00485879,2668.2,2668.1,43.6218825]
[1723995764072,0.00485879,2668.2,2668.1,44.6046487]
[1723995764373,0.00485879,2668.2,2668.1,46.96628414]
[1723995765275,0.00485879,2668.2,2668.1,47.56239351]
[1723995766967,0.00485879,2668.2,2668.1,46.96628414]
[1723995767473,0.00485879,2668.2,2668.1,47.56225532]
[1723995767670,0.00485879,2668.2,2668.1,47.96549569]
[1723995768807,0.00485879,2668.2,2668.1,47.36951401]
[1723995768963,0.00485879,2668.2,2668.1,51.71342935]
[1723995769568,0.00561966,2668.4,2668.3,3.7468]
[1723995769768,0.00561966,2668.4,2668.3,22.42562351]
[1723995769980,0.6999,2668.9,2668.6,3.74638]
[1723995769981,1.96132705,2668.7,2668.6,3.74638]
[1723995770181,1.96132705,2668.8,2668.7,2.24052]
[1723995770476,1.96132705,2669.0,2668.9,1.87298]
[1723995770675,2.45407433,2669.1,2669.0,1.87291]
[1723995771070,2.45407433,2669.1,2669.0,42.67291]
[1723995771071,2.45804068,2669.1,2669.0,42.67291]
[1723995771472,0.00396635,2669.1,2669.0,42.67291]
[1723995771674,2.45804068,2669.1,2669.0,42.67291]
[1723995772179,0.00396635,2669.1,2669.0,42.67291]
[1723995772377,1.96786583,2669.1,2669.0,42.67291]
[1723995772576,0.00396635,2669.1,2669.0,42.67291]
[1723995774966,1.96711584,2669.1,2669.0,42.67291]
[1723995776283,0.00396635,2669.1,2669.0,42.67291]
[1723995785288,0.00396635,2669.1,2669.0,48.11402]
[1723995785595,0.00561966,2669.3,2669.2,3.74554]
[1723995785885,0.00561966,2669.3,2669.2,2.81777]
[1723995786082,2.30164949,2669.7,2669.2,6.56417]
[1723995786083,1.96314949,2669.7,2669.2,6.56417]
[1723995786379,2.30164949,2670.0,2669.7,1.87239]
[1723995786582,7.38620013,2670.0,2669.7,1.87239]
[1723995786785,7.38620013,2670.0,2669.6,0.945]
[1723995786786,5.51396013,2670.0,2669.6,0.945]
[1723995786988,7.38617013,2670.0,2669.7,1.87238]
[1723995787171,6.45896013,2670.0,2669.8,1.87235]
[1723995787373,6.45896013,2670.0,2669.7,1.87237]
[1723995787374,3.55081064,2670.0,2669.7,1.87237]
[1723995787574,4.49581064,2670.0,2669.8,1.87234]
[1723995787975,8.24141064,2670.0,2669.8,1.87234]
[1723995788186,10.11363064,2670.0,2669.7,1.87238]
[1723995788388,6.36803064,2670.0,2669.7,1.87238]
[1723995790386,6.36803064,2670.0,2669.6,1.30881966]
[1723995790387,6.36803064,2670.0,2669.8,1.87235]
[1723995790582,4.49581064,2670.0,2669.8,1.87235]
[1723995790788,8.24141064,2670.0,2669.8,1.87235]
[1723995791182,10.11363064,2670.0,2669.8,1.87235]
[1723995792487,10.11363064,2670.0,2669.7,1.87239]
[1723995792683,6.36803064,2670.0,2669.7,1.87239]
[1723995793188,1.8723,2669.9,2669.7,1.87239]
[1723995793380,6.36807064,2670.0,2669.7,1.87239]
[1723995794588,6.36807064,2670.0,2669.8,1.87235]
[1723995794989,10.11367064,2670.0,2669.8,1.87235]
[1723995796087,8.24141064,2670.0,2669.7,1.8724]
[1723995796294,6.36806064,2670.0,2669.7,1.8724]
[1723995796488,6.36806064,2670.0,2669.8,1.87234]
[1723995796889,10.11366064,2670.0,2669.8,1.87234]
[1723995797788,10.11366064,2670.0,2669.7,1.87238]
[1723995797996,1.87228,2669.9,2669.7,1.87238]
[1723995798198,6.36805064,2670.0,2669.6,1.30881966]
[1723995798395,2.81733,2669.9,2669.6,2.23625966]
[1723995798698,2.85263,2669.9,2669.6,2.23625966]
[1723995800091,6.59823,2669.9,2669.6,2.23625966]
[1723995801201,6.59823,2669.9,2669.7,1.87242]
[1723995801498,3.7456,2669.8,2669.7,1.87242]
[1723995801998,1.87233,2669.9,2669.7,1.87242]
[1723995802194,3.55081064,2670.0,2669.8,1.87233]
[1723995802393,4.49581064,2670.0,2669.9,2.21108]
[1723995802892,8.24141064,2670.0,2669.9,2.21108]
[1723995803493,8.24141064,2670.0,2669.9,2.57798]
[1723995805301,4.49581064,2670.0,2669.9,2.57798]
[1723995806311,8.24141064,2670.0,2669.9,2.57798]
[1723995807995,10.11362064,2670.0,2669.9,0.7057]
[1723995808206,10.11362064,2670.0,2669.9,0.3388]
[1723995810302,10.11362064,2670.0,2669.9,2.21108]
[1723995810303,8.24141064,2670.0,2669.9,2.21108]
[1723995812401,4.49581064,2670.0,2669.9,2.21108]
[1723995813009,4.49581064,2670.0,2669.9,2.57028]
[1723995813605,3.55081064,2670.0,2669.9,2.57028]
[1723995815499,0.34301064,2670.0,2669.9,2.57028]
[1723995815699,3.55081064,2670.0,2669.9,2.57028]
[1723995815899,5.51396013,2670.0,2669.9,2.57028]
[1723995816206,2.30616013,2670.0,2669.9,2.57028]
[1723995816507,0.34301064,2670.0,2669.9,2.57028]
[1723995817704,2.30616013,2670.0,2669.9,2.57028]
[1723995818809,5.51396013,2670.0,2669.9,2.57028]
[1723995819006,5.51396013,2670.0,2669.9,0.698]
[1723995819204,3.55081064,2670.0,2669.9,0.698]
[1723995819604,5.42302064,2670.0,2669.9,0.698]
[1723995820613,3.55081064,2670.0,2669.9,0.698]
[1723995821308,3.55081064,2670.0,2669.9,2.57028]
[1723995821908,6.00488497,2670.0,2669.9,2.57028]
[1723995822110,3.55081064,2670.0,2669.9,2.57028]
[1723995822309,3.55081064,2670.0,2669.9,0.698]
[1723995822506,3.55081064,2670.0,2669.9,2.57028]
[1723995823409,6.00488497,2670.0,2669.9,2.57028]
[1723995825112,6.00488497,2670.0,2669.9,0.698]
[1723995825317,5.42302064,2670.0,2669.9,0.698]
[1723995825505,4.49581064,2670.0,2669.9,0.698]
[1723995825902,6.94861536,2670.0,2669.9,0.698]
[1723995826514,4.49581064,2670.0,2669.9,0.698]
[1723995826908,4.49581064,2670.0,2669.9,2.57028]
[1723995827315,4.49581064,2670.0,2669.9,0.698]
[1723995828602,6.36802064,2670.0,2669.9,0.698]
[1723995829005,0.00451064,2670.0,2669.9,2.57028]
[1723995829207,2.45857969,2670.0,2669.9,2.57028]
[1723995830615,0.00451064,2670.0,2669.9,2.57028]
[1723995831121,2.46025621,2670.0,2669.9,2.57028]
[1723995831516,0.00451064,2670.0,2669.9,2.57028]
[1723995833013,0.00451064,2670.0,2669.9,3.85508]
[1723995838321,1.87672064,2670.0,2669.9,0.3388]
[1723995838622,2.22352064,2670.0,2669.9,0.3388]
[1723995839821,3.16852064,2670.0,2669.9,0.3388]
[1723995840021,3.16852064,2670.0,2669.6,3.16574966]
[1723995840022,3.74484,2669.7,2669.6,0.00561966]
[1723995840318,3.74484,2669.7,2668.9,1.32299766]
[1723995840319,4.1528,2669.7,2668.9,1.32299766]
[1723995840520,4.1528,2669.7,2668.9,1.2877]
[1723995840521,4.33004316,2669.1,2668.9,1.2877]
[1723995840922,2.45719316,2669.1,2669.0,40.8]
[1723995842116,2.45719316,2669.1,2669.0,42.67291]
[1723995842318,2.46281282,2669.3,2669.2,1.87277]
[1723995842515,1.96902352,2669.3,2669.2,2.81777]
[1723995842717,0.00561966,2669.3,2669.2,11.64474]
[1723995842924,1.96340386,2669.7,2669.3,1.8727]
[1723995843121,2.45719316,2669.8,2669.7,1.87242]
[1723995843122,1.96340386,2669.8,2669.7,1.87242]
[1723995843321,1.96340386,2669.9,2669.8,1.87235]
[1723995843522,1.96340386,2669.9,2669.8,3.17255]
[1723995843722,1.96340386,2669.9,2669.8,43.97255]
[1723995847130,2.4617038,2670.0,2669.8,43.97255]
[1723995847427,5.2789538,2670.0,2669.8,41.1552]
[1723995847631,1.87228,2669.9,2669.8,40.8]
[1723995847927,1.96302329,2669.9,2669.8,40.8]
[1723995848129,1.96302329,2669.9,2669.8,42.67235]
[1723995848325,1.96302329,2669.9,2669.8,43.61735]
[1723995848732,1.96302329,2669.9,2669.8,41.745]
[1723995849933,3.83530329,2669.9,2669.8,40.8]
[1723995850233,1.96287536,2669.9,2669.8,40.8]
[1723995852137,1.96287536,2669.9,2669.8,42.67235]
[1723995852732,1.96287536,2669.9,2669.8,40.8]
[1723995853434,3.83515536,2669.9,2669.8,40.8]
[1723995853733,5.27447316,2669.9,2669.8,40.8]
[1723995853934,2.81728,2669.9,2669.8,40.8]
[1723995854327,5.27447316,2669.9,2669.8,40.8]
[1723995855334,8.43516,2669.9,2669.8,40.8]
[1723995855529,9.6906,2669.9,2669.3,2.24608]
[1723995855737,1.96328854,2669.5,2669.4,1.87263]
[1723995856036,1.96314797,2669.5,2669.4,42.67263]
[1723995859328,4.68521068,2669.6,2669.4,42.67263]
[1723995859633,5.04251068,2669.6,2669.4,42.67263]
[1723995860132,5.04251068,2669.6,2669.4,40.8]
[1723995860331,5.04251068,2669.6,2669.4,42.67263]
[1723995860633,5.04251068,2669.6,2669.4,40.8]
[1723995860634,8.47947068,2669.5,2669.4,40.8]
[1723995860839,9.77176,2669.5,2669.4,40.8]
[1723995863435,5.65994275,2669.5,2669.4,42.67263]
[1723995863636,2.81074275,2669.6,2669.4,42.67263]
[1723995863834,1.96149708,2669.5,2669.4,42.67263]
[1723995864030,1.96149708,2669.5,2669.4,43.01643]
[1723995864235,5.70789708,2669.5,2669.4,43.01643]
[1723995864635,5.70789708,2669.5,2669.4,41.1438]
[1723995865235,1.96149708,2669.5,2669.4,43.01643]
[1723995865437,1.96149708,2669.5,2669.4,43.38713]
[1723995865939,1.96149708,2669.5,2669.4,41.5145]
[1723995867040,1.96149708,2669.5,2669.4,43.38713]
[1723995868331,1.96149708,2669.5,2669.4,41.5145]
[1723995872941,1.96149708,2669.5,2669.4,41.1438]
[1723995873139,2.90649708,2669.5,2669.4,41.1438]
[1723995873484,4.77905708,2669.5,2669.4,41.1438]
[1723995875433,4.77905708,2669.5,2669.4,40.8]
[1723995875648,8.52545708,2669.5,2669.4,40.8]
[1723995876440,6.65289708,2669.5,2669.4,40.8]
[1723995877948,6.65289708,2669.5,2669.4,41.1513]
[1723995878244,8.52545708,2669.5,2669.4,41.1513]
[1723995878739,6.65289708,2669.5,2669.4,41.1513]
[1723995881152,2.90649708,2669.5,2669.4,43.02393]
[1723995882241,2.90649708,2669.5,2669.4,41.1513]
[1723995883341,8.52545708,2669.5,2669.4,41.1513]
[1723995883546,6.56396,2669.5,2669.4,41.1513]
[1723995884542,2.81756,2669.5,2669.4,41.1513]
[1723995885152,0.945,2669.5,2669.4,41.1513]
[1723995886847,2.81756,2669.5,2669.4,41.1513]
[1723995889055,0.945,2669.5,2669.4,41.1513]
[1723995890650,2.81756,2669.5,2669.4,41.1513]
[1723995891050,5.26970275,2669.5,2669.4,41.1513]
[1723995892957,3.39714275,2669.5,2669.4,41.1513]
[1723995893656,5.26970275,2669.5,2669.4,41.1513]
[1723995894159,5.26970275,2669.5,2669.1,0.7206]
[1723995894160,1.87275,2669.3,2669.1,0.7206]
[1723995894374,2.81775,2669.3,2669.2,0.3704]
[1723995894662,5.26989275,2669.3,2669.2,41.1704]
[1723995896148,9.01629275,2669.3,2669.2,41.1704]
[1723995897156,9.01629275,2669.3,2669.2,40.8]
[1723995897560,11.56414,2669.3,2668.8,0.00561966]
[1723995897770,0.945,2668.9,2668.8,0.37641966]
[1723995898152,4.78171722,2668.9,2668.8,41.17641966]
[1723995899361,2.90873722,2668.9,2668.8,41.17641966]
[1723995899565,1.96373722,2669.0,2668.8,42.47001966]
[1723995899955,1.96373722,2668.9,2668.8,44.34306966]
[1723995900260,2.45467152,2669.1,2668.9,1.87298]
[1723995900459,2.45467152,2669.1,2669.0,0.3724]
[1723995900758,0.945,2669.1,2668.8,41.52501966]
[1723995900966,3.40070136,2669.0,2668.8,41.17641966]
[1723995901358,4.32868136,2668.9,2668.8,41.17641966]
[1723995901564,2.45570136,2668.9,2668.8,41.17641966]
[1723995901750,2.45551277,2668.9,2668.8,41.17641966]
[1723995903667,5.27347277,2669.0,2668.8,41.17641966]
[1723995903857,2.45551277,2668.9,2668.8,41.17641966]
[1723995904163,5.27347277,2669.0,2668.8,41.17641966]
[1723995907351,3.83601227,2668.9,2668.8,41.17641966]
[1723995907556,4.32849277,2668.9,2668.8,41.17641966]
[1723995907757,2.45551277,2668.9,2668.8,41.17641966]
[1723995908966,4.32849277,2668.9,2668.8,41.17641966]
[1723995909261,2.45551277,2668.9,2668.8,41.17641966]
[1723995910563,4.32849277,2668.9,2668.8,41.17641966]
[1723995911059,2.45551277,2668.9,2668.8,41.17641966]
[1723995911261,1.87298,2668.9,2668.8,41.17641966]
[1723995911464,4.32849277,2668.9,2668.8,41.17641966]
[1723995912060,2.45551277,2668.9,2668.8,41.17641966]
[1723995912368,5.27347277,2669.0,2668.8,41.17641966]
[1723995913968,4.32847277,2669.0,2668.8,41.17641966]
[1723995914165,2.81798,2668.9,2668.8,41.17641966]
[1723995914369,2.90674796,2668.9,2668.8,41.17641966]
[1723995914568,0.945,2668.9,2668.8,41.17641966]
[1723995914867,2.81798,2668.9,2668.8,41.17641966]
[1723995915462,0.945,2668.9,2668.8,41.17641966]
[1723995916063,2.81798,2668.9,2668.8,41.17641966]
[1723995916470,0.945,2668.9,2668.8,41.17641966]
[1723995916969,2.81798,2668.9,2668.8,41.17641966]
[1723995917270,0.945,2668.9,2668.8,41.17641966]
[1723995917465,2.81798,2668.9,2668.8,41.17641966]
[1723995919776,0.945,2668.9,2668.8,41.17641966]
[1723995921965,0.945,2668.9,2668.8,43.04946966]
[1723995922175,4.77928657,2669.0,2668.8,43.04946966]
[1723995922399,4.77928657,2669.0,2668.9,0.3597]
[1723995923670,2.90636657,2669.0,2668.9,0.3597]
[1723995924167,1.96136657,2669.0,2668.9,0.3597]
[1723995924380,4.77927657,2669.0,2668.9,0.3597]
[1723995925167,2.81791,2669.0,2668.9,0.3597]
[1723995926572,0.945,2669.0,2668.9,0.3597]
[1723995926802,1.96161434,2669.0,2668.9,3.17768]
[1723995926973,1.96161434,2669.3,2668.9,10.0511]
[1723995927166,1.96161434,2669.6,2669.5,1.87256]
[1723995927368,5.16901827,2669.7,2669.5,1.8725]
[1723995927570,5.16901827,2669.7,2669.6,2.23659]
[1723995927871,5.16901827,2669.7,2669.6,0.3641]
[1723995928370,3.2078,2669.7,2669.6,2.23659]
[1723995928571,3.2078,2669.7,2669.6,2.60249]
[1723995928968,3.2078,2669.7,2669.6,43.40249]
[1723995929476,4.1528,2669.7,2669.6,43.40249]
[1723995930370,0.945,2669.7,2669.6,43.40249]
[1723995937095,0.945,2669.7,2669.6,43.74649]
[1723995938581,0.945,2669.7,2669.6,43.38239]
[1723995939568,2.81742,2669.7,2669.6,41.5099]
[1723995940183,3.19082,2669.7,2669.6,41.5099]
[1723995941782,1.3184,2669.7,2669.6,41.5099]
[1723995942279,1.87256,2669.6,2669.2,1.87274]
[1723995942480,0.945,2669.5,2669.3,0.3597]
[1723995942680,0.945,2669.5,2669.4,40.8]
[1723995945387,0.945,2669.6,2669.4,42.67263]
[1723995946183,2.8175,2669.6,2669.4,40.8]
[1723995947579,3.83363827,2669.8,2669.5,1.87256]
[1723995947782,3.83363827,2669.8,2669.6,0.3529]
[1723995947783,0.945,2669.7,2669.6,0.3529]
[1723995947980,0.945,2669.7,2669.6,2.22539]
[1723995948178,0.945,2669.7,2669.6,43.02539]
[1723995948786,0.945,2669.7,2669.6,41.1529]
[1723995949388,0.945,2669.7,2669.6,43.02539]
[1723995950581,0.945,2669.7,2669.6,41.1529]
[1723995950988,0.945,2669.7,2669.6,43.02539]
[1723995951585,0.945,2669.7,2669.6,41.1529]
[1723995952594,0.945,2669.7,2669.6,43.02539]
[1723995953399,0.945,2669.7,2669.6,41.1529]
[1723995954096,0.945,2669.7,2669.6,43.02539]
[1723995954593,0.945,2669.7,2669.6,41.1529]
[1723995954890,1.96121827,2669.9,2669.8,1.87235]
[1723995955094,0.00451064,2670.0,2669.8,1.87235]
[1723995955095,0.00451064,2670.0,2669.9,1.87228]
[1723995955490,0.00451064,2670.0,2669.9,43.02648]
[1723995959095,0.94951064,2670.0,2669.9,40.8]
[1723995960197,0.94951064,2670.0,2669.9,42.67228]
[1723995961594,0.00451064,2670.0,2669.9,40.8]
[1723995962593,0.00451064,2670.0,2669.9,42.67228]
[1723995970403,0.94951064,2670.0,2669.9,42.67228]
[1723995970597,0.94951064,2670.0,2669.9,40.8]
[1723995971098,1.29691064,2670.0,2669.9,40.8]
[1723995971405,8.42522341,2670.0,2669.9,40.8]
[1723995971597,0.35191064,2670.0,2669.9,40.8]
[1723995971825,1.29691064,2670.0,2669.9,40.8]
[1723995972397,3.75242341,2670.0,2669.9,40.8]
[1723995973696,5.62463341,2670.0,2669.9,40.8]
[1723995973900,3.16912064,2670.0,2669.9,40.8]
[1723995974097,3.74908597,2670.0,2669.9,40.8]
[1723995975504,5.62129597,2670.0,2669.9,40.8]
[1723995976305,3.16912064,2670.0,2669.9,40.8]
[1723995976509,5.62128822,2670.0,2669.9,40.8]
[1723995977012,3.74907822,2670.0,2669.9,40.8]
[1723995977513,5.62128822,2670.0,2669.9,40.8]
[1723995978214,3.74907822,2670.0,2669.9,40.8]
[1723995978409,5.62128822,2670.0,2669.9,40.8]
[1723995978608,8.82908822,2670.0,2669.9,40.8]
[1723995978911,6.95687822,2670.0,2669.9,40.8]
[1723995979700,0.00451064,2670.0,2669.9,42.67228]
[1723995979911,1.9661261,2670.0,2669.9,43.98468]
[1723995980110,0.00451064,2670.0,2669.9,43.98468]
[1723995984804,0.00451064,2670.0,2669.9,43.03968]
[1723995990909,0.00451064,2670.0,2669.9,47.73028]
[1723995992011,0.00451064,2670.0,2669.9,46.78528]
[1723995993726,0.94951064,2670.0,2669.9,46.78528]
[1723995993918,2.91210597,2670.0,2669.9,46.78528]
[1723995994113,0.94951064,2670.0,2669.9,46.78528]
[1723995994508,2.91210718,2670.0,2669.9,43.03968]
[1723995994848,1.30141064,2670.0,2669.9,42.67228]
[1723995996023,1.96741718,2670.0,2669.9,42.67228]
[1723995996323,1.96741718,2670.0,2669.9,43.61728]
[1723995996618,1.96741718,2670.0,2669.9,47.36288]
[1723995996824,1.96741718,2670.0,2669.9,46.41788]
[1723995997020,0.00451064,2670.0,2669.9,47.36288]
[1723996000717,1.96741718,2670.0,2669.9,47.36288]
[1723996001320,0.00451064,2670.0,2669.9,47.36288]
[1723996001523,1.96741718,2670.0,2669.9,47.36288]
[1723996004626,4.78462718,2670.0,2669.9,3.7456]
[1723996004826,9.77512064,2670.0,2669.4,0.3613]
[1723996005018,1.964085,2669.5,2669.4,0.3613]
[1723996005325,1.963732,2669.5,2669.4,43.03393]
[1723996005526,2.315332,2669.5,2669.4,43.03393]
[1723996007123,4.187892,2669.5,2669.4,41.1613]
[1723996007321,2.315332,2669.5,2669.4,41.1613]
[1723996007523,2.315332,2669.5,2669.4,43.03393]
[1723996007726,2.315332,2669.5,2669.4,41.1613]
[1723996007925,2.315332,2669.5,2669.4,43.03393]
[1723996008325,4.187892,2669.5,2669.4,43.03393]
[1723996008531,2.315332,2669.5,2669.4,43.03393]
[1723996008732,0.3516,2669.5,2669.4,43.03393]
[1723996010933,2.22416,2669.5,2669.4,43.03393]
[1723996011131,1.963732,2669.6,2669.5,1.87256]
[1723996011439,1.963732,2669.6,2669.5,5.61896]
[1723996011626,1.963732,2669.8,2669.7,1.87242]
[1723996011934,2.323432,2669.9,2669.8,1.87235]
[1723996012436,2.323432,2669.9,2669.8,5.97735]
[1723996013237,0.3597,2669.9,2669.8,5.97735]
[1723996013530,2.323432,2669.9,2669.8,5.97735]
[1723996014237,0.3597,2669.9,2669.8,5.97735]
[1723996014833,2.323432,2669.9,2669.8,5.97735]
[1723996015430,0.3597,2669.9,2669.8,5.97735]
[1723996020538,1.96824264,2670.0,2669.9,1.87228]
[1723996020848,0.00451064,2670.0,2669.9,2.81728]
[1723996021035,0.00451064,2670.0,2669.9,6.56288]
[1723996023843,0.00451064,2670.0,2669.9,5.61788]
[1723996024438,0.35521064,2670.0,2669.9,5.61788]
[1723996030339,0.00451064,2670.0,2669.9,5.61788]
[1723996031241,0.00451064,2670.0,2669.9,6.56288]
[1723996032547,0.00451064,2670.0,2669.9,9.77068]
[1723996038344,0.00451064,2670.0,2669.9,6.02508]
[1723996038537,0.00451064,2670.0,2669.9,9.77068]
[1723996042857,0.00451064,2670.0,2669.9,6.56288]
[1723996053261,6.4e-07,2670.0,2669.9,11.64296]
[1723996053467,2.94863179,2670.7,2669.9,11.64296]
[1723996053468,1.963732,2670.6,2670.1,1.87209]
[1723996053657,1.963732,2670.7,2670.5,2.81681]
[1723996053852,1.963732,2670.7,2670.6,40.8]
[1723996054068,1.963732,2670.7,2670.6,41.1643]
[1723996054462,6.65742004,2670.7,2670.6,40.80459754]
[1723996054767,6.56539804,2670.7,2670.6,40.80459754]
[1723996055558,4.69368804,2670.7,2670.6,40.80459754]
[1723996056257,3.74868804,2670.7,2670.6,40.80459754]
[1723996056470,6.20195925,2670.7,2670.6,40.80459754]